Workbook

Sheet Contents
B2: Key Concepts
B4: Set-up Timing
B5: Separate EBITDA and Cap Exp from Financing
B6: Two Cash Flow Statements -- Sources and Uses and Waterfall
B7: Financial Statements at End not Beginning
B9: Please Open Generic Macros File
C11: Sheet Tab | D11: Description | E11: Author
B12: 1 | C12: Contents
B13: 2 | C13: Simple Project Finance Model
B14: 3 | C14: Model Inputs
B15: 4 | C15: Installing Macros
B16: 5 | C16: Advertising
B18: File Name: | D18: C:\Users\Monika\Documents\Courses\Chapter 1. Models and Analysis\2. Project Finance Models and Exercises\Project Finance Model Exercises\Exercise 4b Simple Project Finance Model.xlsm
B20: Colour Codes
B22: Last Save Date | D22: 13/09/2014 12:33:13
B23: Last Save By | D23: Monika Lewinski

Sheet Completed Exercise
D1: Period | E1: Constr Per | F1: =E11 -> 3 | I1: =-F1+1 -> -2 | J1: =I1+1 -> -1 | K1: =J1+1 -> 0 | L1: 1 | M1: 2 | N1: 3 | O1: 4 | P1: 5 | Q1: 6 | R1: 7 | S1: 8 | T1: 9 | U1: 10 | V1: 11 | W1: 12 | X1: 13 | Y1: 14 | Z1: 15 | AA1: 16 | AB1: 17 | AC1: 18 | AD1: 19 | AE1: 20 | AF1: 21 | AG1: 22 | AH1: 23 | AI1: 24 | AJ1: 25 | AK1: 26 | AL1: 27 | AM1: 28 | AN1: 29 | AO1: 30 | AP1: 31 | AQ1: 32 | AR1: 33 | AS1: 34 | AT1: 35 | AU1: 36 | AV1: 37 | AW1: 38 | AX1: 39 | AY1: 40 | AZ1: 41 | BA1: 42 | BB1: 43 | BC1: 44 | BD1: 45 | BE1: 46 | BF1: 47 | BG1: 48 | BH1: 49 | BI1: 50
D2: Construction Phase | E2: End of Cnstr | F2: 0 | I2: =I1<=$F$2 -> TRUE | J2: TRUE | K2: TRUE | L2: FALSE | M2: FALSE | N2: FALSE | O2: FALSE | P2: FALSE | Q2: FALSE | R2: FALSE | S2: FALSE | T2: FALSE | U2: FALSE | V2: FALSE | W2: FALSE | X2: FALSE | Y2: FALSE | Z2: FALSE | AA2: FALSE | AB2: FALSE | AC2: FALSE | AD2: FALSE | AE2: FALSE | AF2: FALSE | AG2: FALSE | AH2: FALSE | AI2: FALSE | AJ2: FALSE | AK2: FALSE | AL2: FALSE | AM2: FALSE | AN2: FALSE | AO2: =AO1<=$F$2 -> FALSE | AP2: FALSE | AQ2: FALSE | AR2: FALSE | AS2: FALSE | AT2: FALSE | AU2: FALSE | AV2: FALSE | AW2: FALSE | AX2: FALSE | AY2: FALSE | AZ2: FALSE | BA2: FALSE | BB2: FALSE | BC2: FALSE | BD2: FALSE | BE2: FALSE | BF2: FALSE | BG2: FALSE | BH2: FALSE | BI2: FALSE
D3: Operation Phase | E3: Life | F3: =E12 -> 30 | I3: =AND(I$1>0,I1<=$F3) -> FALSE | J3: FALSE | K3: FALSE | L3: TRUE | M3: TRUE | N3: TRUE | O3: TRUE | P3: TRUE | Q3: TRUE | R3: TRUE | S3: TRUE | T3: TRUE | U3: TRUE | V3: TRUE | W3: TRUE | X3: TRUE | Y3: TRUE | Z3: TRUE | AA3: TRUE | AB3: TRUE | AC3: TRUE | AD3: TRUE | AE3: TRUE | AF3: TRUE | AG3: TRUE | AH3: TRUE | AI3: TRUE | AJ3: TRUE | AK3: TRUE | AL3: TRUE | AM3: TRUE | AN3: TRUE | AO3: =AND(AO$1>0,AO1<=$F3) -> TRUE | AP3: FALSE | AQ3: FALSE | AR3: FALSE | AS3: FALSE | AT3: FALSE | AU3: FALSE | AV3: FALSE | AW3: FALSE | AX3: FALSE | AY3: FALSE | AZ3: FALSE | BA3: FALSE | BB3: FALSE | BC3: FALSE | BD3: FALSE | BE3: FALSE | BF3: FALSE | BG3: FALSE | BH3: FALSE | BI3: FALSE
D4: Debt Repayment Phase | E4: Tenor | F4: =E20 -> 20 | I4: =AND(I1>0,I1<=$F$4) -> FALSE | J4: FALSE | K4: FALSE | L4: TRUE | M4: TRUE | N4: TRUE | O4: TRUE | P4: TRUE | Q4: TRUE | R4: TRUE | S4: TRUE | T4: TRUE | U4: TRUE | V4: TRUE | W4: TRUE | X4: TRUE | Y4: TRUE | Z4: TRUE | AA4: TRUE | AB4: TRUE | AC4: TRUE | AD4: TRUE | AE4: TRUE | AF4: FALSE | AG4: FALSE | AH4: FALSE | AI4: FALSE | AJ4: FALSE | AK4: FALSE | AL4: FALSE | AM4: FALSE | AN4: FALSE | AO4: =AND(AO1>0,AO1<=$F$4) -> FALSE | AP4: FALSE | AQ4: FALSE | AR4: FALSE | AS4: FALSE | AT4: FALSE | AU4: FALSE | AV4: FALSE | AW4: FALSE | AX4: FALSE | AY4: FALSE | AZ4: FALSE | BA4: FALSE | BB4: FALSE | BC4: FALSE | BD4: FALSE | BE4: FALSE | BF4: FALSE | BG4: FALSE | BH4: FALSE | BI4: FALSE
A5: Assumptions
C6: Operating
D7: Revenues | E7: 130 | G7: Outputs
D8: Total Cost of Project | E8: 1000
G9: Project Pre Tax IRR | I9: =F27 -> 0.1116399716
C10: Timing | G10: Project After Tax IRR | I10: =F39 -> 0.08949665645
D11: Construction Period | E11: 3 | G11: Equity IRR | I11: =F95 -> 0.16478243
D12: Life | E12: 30
G13: Min DSCR | I13: =F92 -> 1.452083333
C14: Tax and Depreciation
D15: Depreciation Life | E15: 30
D16: Tax Rate | E16: 0.25
C18: Debt Financing
D19: Debt Commitment | E19: 800
D20: Debt Tenor | E20: 20
D21: Interest Rate | E21: 0.05
A23: Operations Analysis
C24: EBITDA | E24: Base | F24: =E7 -> 130 | I24: =$F$24*I3 -> 0 | J24: 0 | K24: 0 | L24: 130 | M24: 130 | N24: 130 | O24: 130 | P24: 130 | Q24: 130 | R24: 130 | S24: 130 | T24: 130 | U24: 130 | V24: 130 | W24: 130 | X24: 130 | Y24: 130 | Z24: 130 | AA24: 130 | AB24: 130 | AC24: 130 | AD24: 130 | AE24: 130 | AF24: 130 | AG24: 130 | AH24: 130 | AI24: 130 | AJ24: 130 | AK24: 130 | AL24: 130 | AM24: 130 | AN24: 130 | AO24: =$F$24*AO3 -> 130 | AP24: 0 | AQ24: 0 | AR24: 0 | AS24: 0 | AT24: 0 | AU24: 0 | AV24: 0 | AW24: 0 | AX24: 0 | AY24: 0 | AZ24: 0 | BA24: 0 | BB24: 0 | BC24: 0 | BD24: 0 | BE24: 0 | BF24: 0 | BG24: 0 | BH24: 0 | BI24: 0
C25: Construction Expenditures | E25: Cost | F25: =E8 -> 1000 | G25: Period | H25: =F1 -> 3 | I25: =$F$25/$H$25*I2 -> 333.3333333 | J25: 333.3333333 | K25: 333.3333333 | L25: 0 | M25: 0 | N25: 0 | O25: 0 | P25: 0 | Q25: 0 | R25: 0 | S25: 0 | T25: 0 | U25: 0 | V25: 0 | W25: 0 | X25: 0 | Y25: 0 | Z25: 0 | AA25: 0 | AB25: 0 | AC25: 0 | AD25: 0 | AE25: 0 | AF25: 0 | AG25: 0 | AH25: 0 | AI25: 0 | AJ25: 0 | AK25: 0 | AL25: 0 | AM25: 0 | AN25: 0 | AO25: =$F$25/$H$25*AO2 -> 0 | AP25: 0 | AQ25: 0 | AR25: 0 | AS25: 0 | AT25: 0 | AU25: 0 | AV25: 0 | AW25: 0 | AX25: 0 | AY25: 0 | AZ25: 0 | BA25: 0 | BB25: 0 | BC25: 0 | BD25: 0 | BE25: 0 | BF25: 0 | BG25: 0 | BH25: 0 | BI25: 0
C26: Pre-tax Cash Flow | I26: =I24-I25 -> -333.3333333 | J26: =J24-J25 -> -333.3333333 | K26: -333.3333333 | L26: 130 | M26: 130 | N26: 130 | O26: 130 | P26: 130 | Q26: 130 | R26: 130 | S26: 130 | T26: 130 | U26: 130 | V26: 130 | W26: 130 | X26: 130 | Y26: 130 | Z26: 130 | AA26: 130 | AB26: 130 | AC26: 130 | AD26: 130 | AE26: 130 | AF26: 130 | AG26: 130 | AH26: 130 | AI26: 130 | AJ26: 130 | AK26: 130 | AL26: 130 | AM26: 130 | AN26: 130 | AO26: 130 | AP26: 0 | AQ26: 0 | AR26: 0 | AS26: 0 | AT26: 0 | AU26: 0 | AV26: 0 | AW26: 0 | AX26: 0 | AY26: 0 | AZ26: 0 | BA26: 0 | BB26: 0 | BC26: 0 | BD26: 0 | BE26: 0 | BF26: 0 | BG26: 0 | BH26: 0 | BI26: 0
C27: Pre-tax IRR | E27: Result | F27: =IRR(26:26) -> 0.1116399716
A29: Depreciation
B30: Opening Balance | I30: =H32 -> 0 | J30: =I32 -> 333.3333333 | K30: 666.6666667 | L30: 1000 | M30: 1000 | N30: 1000 | O30: 1000 | P30: 1000 | Q30: 1000 | R30: 1000 | S30: 1000 | T30: 1000 | U30: 1000 | V30: 1000 | W30: 1000 | X30: 1000 | Y30: 1000 | Z30: 1000 | AA30: 1000 | AB30: 1000 | AC30: 1000 | AD30: 1000 | AE30: 1000 | AF30: 1000 | AG30: 1000 | AH30: 1000 | AI30: 1000 | AJ30: 1000 | AK30: 1000 | AL30: 1000 | AM30: 1000 | AN30: 1000 | AO30: 1000 | AP30: 1000 | AQ30: 1000 | AR30: 1000 | AS30: 1000 | AT30: 1000 | AU30: 1000 | AV30: 1000 | AW30: 1000 | AX30: 1000 | AY30: 1000 | AZ30: 1000 | BA30: 1000 | BB30: 1000 | BC30: 1000 | BD30: 1000 | BE30: 1000 | BF30: 1000 | BG30: 1000 | BH30: 1000 | BI30: 1000
B31: Add: Construction | I31: =I25 -> 333.3333333 | J31: =J25 -> 333.3333333 | K31: 333.3333333 | L31: 0 | M31: 0 | N31: 0 | O31: 0 | P31: 0 | Q31: 0 | R31: 0 | S31: 0 | T31: 0 | U31: 0 | V31: 0 | W31: 0 | X31: 0 | Y31: 0 | Z31: 0 | AA31: 0 | AB31: 0 | AC31: 0 | AD31: 0 | AE31: 0 | AF31: 0 | AG31: 0 | AH31: 0 | AI31: 0 | AJ31: 0 | AK31: 0 | AL31: 0 | AM31: 0 | AN31: 0 | AO31: 0 | AP31: 0 | AQ31: 0 | AR31: 0 | AS31: 0 | AT31: 0 | AU31: 0 | AV31: 0 | AW31: 0 | AX31: 0 | AY31: 0 | AZ31: 0 | BA31: 0 | BB31: 0 | BC31: 0 | BD31: 0 | BE31: 0 | BF31: 0 | BG31: 0 | BH31: 0 | BI31: 0
B32: Closing Balance | I32: =SUM(I30:I31) -> 333.3333333 | J32: =SUM(J30:J31) -> 666.6666667 | K32: 1000 | L32: 1000 | M32: 1000 | N32: 1000 | O32: 1000 | P32: 1000 | Q32: 1000 | R32: 1000 | S32: 1000 | T32: 1000 | U32: 1000 | V32: 1000 | W32: 1000 | X32: 1000 | Y32: 1000 | Z32: 1000 | AA32: 1000 | AB32: 1000 | AC32: 1000 | AD32: 1000 | AE32: 1000 | AF32: 1000 | AG32: 1000 | AH32: 1000 | AI32: 1000 | AJ32: 1000 | AK32: 1000 | AL32: 1000 | AM32: 1000 | AN32: 1000 | AO32: 1000 | AP32: 1000 | AQ32: 1000 | AR32: 1000 | AS32: 1000 | AT32: 1000 | AU32: 1000 | AV32: 1000 | AW32: 1000 | AX32: 1000 | AY32: 1000 | AZ32: 1000 | BA32: 1000 | BB32: 1000 | BC32: 1000 | BD32: 1000 | BE32: 1000 | BF32: 1000 | BG32: 1000 | BH32: 1000 | BI32: 1000
B33: Depreciation Expense | E33: Rate | F33: =1/E15 -> 0.03333333333 | I33: =$F$33*I3*I32 -> 0 | J33: 0 | K33: 0 | L33: 33.33333333 | M33: 33.33333333 | N33: 33.33333333 | O33: 33.33333333 | P33: 33.33333333 | Q33: 33.33333333 | R33: 33.33333333 | S33: 33.33333333 | T33: 33.33333333 | U33: 33.33333333 | V33: 33.33333333 | W33: 33.33333333 | X33: 33.33333333 | Y33: 33.33333333 | Z33: 33.33333333 | AA33: 33.33333333 | AB33: 33.33333333 | AC33: 33.33333333 | AD33: 33.33333333 | AE33: 33.33333333 | AF33: 33.33333333 | AG33: 33.33333333 | AH33: 33.33333333 | AI33: 33.33333333 | AJ33: 33.33333333 | AK33: 33.33333333 | AL33: 33.33333333 | AM33: 33.33333333 | AN33: 33.33333333 | AO33: =$F$33*AO3*AO32 -> 33.33333333 | AP33: 0 | AQ33: 0 | AR33: 0 | AS33: 0 | AT33: 0 | AU33: 0 | AV33: 0 | AW33: 0 | AX33: 0 | AY33: 0 | AZ33: 0 | BA33: 0 | BB33: 0 | BC33: 0 | BD33: 0 | BE33: 0 | BF33: 0 | BG33: 0 | BH33: 0 | BI33: 0
B35: EBIT | I35: =I24-I33 -> 0 | J35: =J24-J33 -> 0 | K35: 0 | L35: 96.66666667 | M35: 96.66666667 | N35: 96.66666667 | O35: 96.66666667 | P35: 96.66666667 | Q35: 96.66666667 | R35: 96.66666667 | S35: 96.66666667 | T35: 96.66666667 | U35: 96.66666667 | V35: 96.66666667 | W35: 96.66666667 | X35: 96.66666667 | Y35: 96.66666667 | Z35: 96.66666667 | AA35: 96.66666667 | AB35: 96.66666667 | AC35: 96.66666667 | AD35: 96.66666667 | AE35: 96.66666667 | AF35: 96.66666667 | AG35: 96.66666667 | AH35: 96.66666667 | AI35: 96.66666667 | AJ35: 96.66666667 | AK35: 96.66666667 | AL35: 96.66666667 | AM35: 96.66666667 | AN35: 96.66666667 | AO35: 96.66666667 | AP35: 0 | AQ35: 0 | AR35: 0 | AS35: 0 | AT35: 0 | AU35: 0 | AV35: 0 | AW35: 0 | AX35: 0 | AY35: 0 | AZ35: 0 | BA35: 0 | BB35: 0 | BC35: 0 | BD35: 0 | BE35: 0 | BF35: 0 | BG35: 0 | BH35: 0 | BI35: 0
B36: EBIT x T | E36: Tax Rate | F36: =E16 -> 0.25 | I36: =I35*$F$36 -> 0 | J36: =J35*$F$36 -> 0 | K36: 0 | L36: 24.16666667 | M36: 24.16666667 | N36: 24.16666667 | O36: 24.16666667 | P36: 24.16666667 | Q36: 24.16666667 | R36: 24.16666667 | S36: 24.16666667 | T36: 24.16666667 | U36: 24.16666667 | V36: 24.16666667 | W36: 24.16666667 | X36: 24.16666667 | Y36: 24.16666667 | Z36: 24.16666667 | AA36: 24.16666667 | AB36: 24.16666667 | AC36: 24.16666667 | AD36: 24.16666667 | AE36: 24.16666667 | AF36: 24.16666667 | AG36: 24.16666667 | AH36: 24.16666667 | AI36: 24.16666667 | AJ36: 24.16666667 | AK36: 24.16666667 | AL36: 24.16666667 | AM36: 24.16666667 | AN36: 24.16666667 | AO36: 24.16666667 | AP36: 0 | AQ36: 0 | AR36: 0 | AS36: 0 | AT36: 0 | AU36: 0 | AV36: 0 | AW36: 0 | AX36: 0 | AY36: 0 | AZ36: 0 | BA36: 0 | BB36: 0 | BC36: 0 | BD36: 0 | BE36: 0 | BF36: 0 | BG36: 0 | BH36: 0 | BI36: 0
B38: After Tax Free Cash Flow | I38: =I26-I36 -> -333.3333333 | J38: =J26-J36 -> -333.3333333 | K38: -333.3333333 | L38: 105.8333333 | M38: 105.8333333 | N38: 105.8333333 | O38: 105.8333333 | P38: 105.8333333 | Q38: 105.8333333 | R38: 105.8333333 | S38: 105.8333333 | T38: 105.8333333 | U38: 105.8333333 | V38: 105.8333333 | W38: 105.8333333 | X38: 105.8333333 | Y38: 105.8333333 | Z38: 105.8333333 | AA38: 105.8333333 | AB38: 105.8333333 | AC38: 105.8333333 | AD38: 105.8333333 | AE38: 105.8333333 | AF38: 105.8333333 | AG38: 105.8333333 | AH38: 105.8333333 | AI38: 105.8333333 | AJ38: 105.8333333 | AK38: 105.8333333 | AL38: 105.8333333 | AM38: 105.8333333 | AN38: 105.8333333 | AO38: 105.8333333 | AP38: 0 | AQ38: 0 | AR38: 0 | AS38: 0 | AT38: 0 | AU38: 0 | AV38: 0 | AW38: 0 | AX38: 0 | AY38: 0 | AZ38: 0 | BA38: 0 | BB38: 0 | BC38: 0 | BD38: 0 | BE38: 0 | BF38: 0 | BG38: 0 | BH38: 0 | BI38: 0
B39: Project IRR | E39: Result | F39: =IRR(38:38) -> 0.08949665645
A41: Sources and Uses
B42: Debt Financing Percent | I42: =I31/SUM(31:31) -> 0.3333333333 | J42: =J31/SUM(31:31) -> 0.3333333333 | K42: 0.3333333333 | L42: 0 | M42: 0 | N42: 0 | O42: 0 | P42: 0 | Q42: 0 | R42: 0 | S42: 0 | T42: 0 | U42: 0 | V42: 0 | W42: 0 | X42: 0 | Y42: 0 | Z42: 0 | AA42: 0 | AB42: 0 | AC42: 0 | AD42: 0 | AE42: 0 | AF42: 0 | AG42: 0 | AH42: 0 | AI42: 0 | AJ42: 0 | AK42: 0 | AL42: 0 | AM42: 0 | AN42: 0 | AO42: 0 | AP42: 0 | AQ42: 0 | AR42: 0 | AS42: 0 | AT42: 0 | AU42: 0 | AV42: 0 | AW42: 0 | AX42: 0 | AY42: 0 | AZ42: 0 | BA42: 0 | BB42: 0 | BC42: 0 | BD42: 0 | BE42: 0 | BF42: 0 | BG42: 0 | BH42: 0 | BI42: 0
B44: Uses of Funds
C45: Construction | I45: =I25 -> 333.3333333 | J45: =J25 -> 333.3333333 | K45: 333.3333333 | L45: 0 | M45: 0 | N45: 0 | O45: 0 | P45: 0 | Q45: 0 | R45: 0 | S45: 0 | T45: 0 | U45: 0 | V45: 0 | W45: 0 | X45: 0 | Y45: 0 | Z45: 0 | AA45: 0 | AB45: 0 | AC45: 0 | AD45: 0 | AE45: 0 | AF45: 0 | AG45: 0 | AH45: 0 | AI45: 0 | AJ45: 0 | AK45: 0 | AL45: 0 | AM45: 0 | AN45: 0 | AO45: 0 | AP45: 0 | AQ45: 0 | AR45: 0 | AS45: 0 | AT45: 0 | AU45: 0 | AV45: 0 | AW45: 0 | AX45: 0 | AY45: 0 | AZ45: 0 | BA45: 0 | BB45: 0 | BC45: 0 | BD45: 0 | BE45: 0 | BF45: 0 | BG45: 0 | BH45: 0 | BI45: 0
C46: Interest During Construction | I46: =I61 -> 0 | J46: =J61 -> 13.33333333 | K46: 26.66666667 | L46: 0 | M46: 0 | N46: 0 | O46: 0 | P46: 0 | Q46: 0 | R46: 0 | S46: 0 | T46: 0 | U46: 0 | V46: 0 | W46: 0 | X46: 0 | Y46: 0 | Z46: 0 | AA46: 0 | AB46: 0 | AC46: 0 | AD46: 0 | AE46: 0 | AF46: 0 | AG46: 0 | AH46: 0 | AI46: 0 | AJ46: 0 | AK46: 0 | AL46: 0 | AM46: 0 | AN46: 0 | AO46: 0 | AP46: 0 | AQ46: 0 | AR46: 0 | AS46: 0 | AT46: 0 | AU46: 0 | AV46: 0 | AW46: 0 | AX46: 0 | AY46: 0 | AZ46: 0 | BA46: 0 | BB46: 0 | BC46: 0 | BD46: 0 | BE46: 0 | BF46: 0 | BG46: 0 | BH46: 0 | BI46: 0
D47: Total | I47: =SUM(I45:I46) -> 333.3333333 | J47: =SUM(J45:J46) -> 346.6666667 | K47: 360 | L47: 0 | M47: 0 | N47: 0 | O47: 0 | P47: 0 | Q47: 0 | R47: 0 | S47: 0 | T47: 0 | U47: 0 | V47: 0 | W47: 0 | X47: 0 | Y47: 0 | Z47: 0 | AA47: 0 | AB47: 0 | AC47: 0 | AD47: 0 | AE47: 0 | AF47: 0 | AG47: 0 | AH47: 0 | AI47: 0 | AJ47: 0 | AK47: 0 | AL47: 0 | AM47: 0 | AN47: 0 | AO47: 0 | AP47: 0 | AQ47: 0 | AR47: 0 | AS47: 0 | AT47: 0 | AU47: 0 | AV47: 0 | AW47: 0 | AX47: 0 | AY47: 0 | AZ47: 0 | BA47: 0 | BB47: 0 | BC47: 0 | BD47: 0 | BE47: 0 | BF47: 0 | BG47: 0 | BH47: 0 | BI47: 0
B49: Sources of Funds
C50: Debt Financing | E50: Commit | F50: =E19 -> 800 | I50: =$F$50*I42 -> 266.6666667 | J50: =$F$50*J42 -> 266.6666667 | K50: 266.6666667 | L50: 0 | M50: 0 | N50: 0 | O50: 0 | P50: 0 | Q50: 0 | R50: 0 | S50: 0 | T50: 0 | U50: 0 | V50: 0 | W50: 0 | X50: 0 | Y50: 0 | Z50: 0 | AA50: 0 | AB50: 0 | AC50: 0 | AD50: 0 | AE50: 0 | AF50: 0 | AG50: 0 | AH50: 0 | AI50: 0 | AJ50: 0 | AK50: 0 | AL50: 0 | AM50: 0 | AN50: 0 | AO50: 0 | AP50: 0 | AQ50: 0 | AR50: 0 | AS50: 0 | AT50: 0 | AU50: 0 | AV50: 0 | AW50: 0 | AX50: 0 | AY50: 0 | AZ50: 0 | BA50: 0 | BB50: 0 | BC50: 0 | BD50: 0 | BE50: 0 | BF50: 0 | BG50: 0 | BH50: 0 | BI50: 0
C51: Equity Financing | I51: =I47-I50 -> 66.66666667 | J51: =J47-J50 -> 80 | K51: 93.33333333 | L51: 0 | M51: 0 | N51: 0 | O51: 0 | P51: 0 | Q51: 0 | R51: 0 | S51: 0 | T51: 0 | U51: 0 | V51: 0 | W51: 0 | X51: 0 | Y51: 0 | Z51: 0 | AA51: 0 | AB51: 0 | AC51: 0 | AD51: 0 | AE51: 0 | AF51: 0 | AG51: 0 | AH51: 0 | AI51: 0 | AJ51: 0 | AK51: 0 | AL51: 0 | AM51: 0 | AN51: 0 | AO51: 0 | AP51: 0 | AQ51: 0 | AR51: 0 | AS51: 0 | AT51: 0 | AU51: 0 | AV51: 0 | AW51: 0 | AX51: 0 | AY51: 0 | AZ51: 0 | BA51: 0 | BB51: 0 | BC51: 0 | BD51: 0 | BE51: 0 | BF51: 0 | BG51: 0 | BH51: 0 | BI51: 0
D52: Total | I52: =SUM(I50:I51) -> 333.3333333 | J52: =SUM(J50:J51) -> 346.6666667 | K52: 360 | L52: 0 | M52: 0 | N52: 0 | O52: 0 | P52: 0 | Q52: 0 | R52: 0 | S52: 0 | T52: 0 | U52: 0 | V52: 0 | W52: 0 | X52: 0 | Y52: 0 | Z52: 0 | AA52: 0 | AB52: 0 | AC52: 0 | AD52: 0 | AE52: 0 | AF52: 0 | AG52: 0 | AH52: 0 | AI52: 0 | AJ52: 0 | AK52: 0 | AL52: 0 | AM52: 0 | AN52: 0 | AO52: 0 | AP52: 0 | AQ52: 0 | AR52: 0 | AS52: 0 | AT52: 0 | AU52: 0 | AV52: 0 | AW52: 0 | AX52: 0 | AY52: 0 | AZ52: 0 | BA52: 0 | BB52: 0 | BC52: 0 | BD52: 0 | BE52: 0 | BF52: 0 | BG52: 0 | BH52: 0 | BI52: 0
A54: Debt Schedule
B55: Opening Balance | I55: =H58 -> 0 | J55: =I58 -> 266.6666667 | K55: 533.3333333 | L55: 800 | M55: 760 | N55: 720 | O55: 680 | P55: 640 | Q55: 600 | R55: 560 | S55: 520 | T55: 480 | U55: 440 | V55: 400 | W55: 360 | X55: 320 | Y55: 280 | Z55: 240 | AA55: 200 | AB55: 160 | AC55: 120 | AD55: 80 | AE55: 40 | AF55: -1.136868377e-13 | AG55: -1.136868377e-13 | AH55: -1.136868377e-13 | AI55: -1.136868377e-13 | AJ55: -1.136868377e-13 | AK55: -1.136868377e-13 | AL55: -1.136868377e-13 | AM55: -1.136868377e-13 | AN55: -1.136868377e-13 | AO55: -1.136868377e-13 | AP55: -1.136868377e-13 | AQ55: -1.136868377e-13 | AR55: -1.136868377e-13 | AS55: -1.136868377e-13 | AT55: -1.136868377e-13 | AU55: -1.136868377e-13 | AV55: -1.136868377e-13 | AW55: -1.136868377e-13 | AX55: -1.136868377e-13 | AY55: -1.136868377e-13 | AZ55: -1.136868377e-13 | BA55: -1.136868377e-13 | BB55: -1.136868377e-13 | BC55: -1.136868377e-13 | BD55: -1.136868377e-13 | BE55: -1.136868377e-13 | BF55: -1.136868377e-13 | BG55: -1.136868377e-13 | BH55: -1.136868377e-13 | BI55: -1.136868377e-13
B56: Add: New Issues | I56: =I50 -> 266.6666667 | J56: =J50 -> 266.6666667 | K56: 266.6666667 | L56: 0 | M56: 0 | N56: 0 | O56: 0 | P56: 0 | Q56: 0 | R56: 0 | S56: 0 | T56: 0 | U56: 0 | V56: 0 | W56: 0 | X56: 0 | Y56: 0 | Z56: 0 | AA56: 0 | AB56: 0 | AC56: 0 | AD56: 0 | AE56: 0 | AF56: 0 | AG56: 0 | AH56: 0 | AI56: 0 | AJ56: 0 | AK56: 0 | AL56: 0 | AM56: 0 | AN56: 0 | AO56: 0 | AP56: 0 | AQ56: 0 | AR56: 0 | AS56: 0 | AT56: 0 | AU56: 0 | AV56: 0 | AW56: 0 | AX56: 0 | AY56: 0 | AZ56: 0 | BA56: 0 | BB56: 0 | BC56: 0 | BD56: 0 | BE56: 0 | BF56: 0 | BG56: 0 | BH56: 0 | BI56: 0
B57: Less: Repayment | E57: Repay % | F57: =1/E20 -> 0.05 | I57: =SUM(56:56)*$F$57*I4 -> 0 | J57: 0 | K57: 0 | L57: 40 | M57: 40 | N57: 40 | O57: 40 | P57: 40 | Q57: 40 | R57: 40 | S57: 40 | T57: 40 | U57: 40 | V57: 40 | W57: 40 | X57: 40 | Y57: 40 | Z57: 40 | AA57: 40 | AB57: 40 | AC57: 40 | AD57: 40 | AE57: 40 | AF57: 0 | AG57: 0 | AH57: 0 | AI57: 0 | AJ57: 0 | AK57: 0 | AL57: 0 | AM57: 0 | AN57: 0 | AO57: =SUM(56:56)*$F$57*AO4 -> 0 | AP57: 0 | AQ57: 0 | AR57: 0 | AS57: 0 | AT57: 0 | AU57: 0 | AV57: 0 | AW57: 0 | AX57: 0 | AY57: 0 | AZ57: 0 | BA57: 0 | BB57: 0 | BC57: 0 | BD57: 0 | BE57: 0 | BF57: 0 | BG57: 0 | BH57: 0 | BI57: 0
B58: Closing Balance | I58: =I55+I56-I57 -> 266.6666667 | J58: =J55+J56-J57 -> 533.3333333 | K58: 800 | L58: 760 | M58: 720 | N58: 680 | O58: 640 | P58: 600 | Q58: 560 | R58: 520 | S58: 480 | T58: 440 | U58: 400 | V58: 360 | W58: 320 | X58: 280 | Y58: 240 | Z58: 200 | AA58: 160 | AB58: 120 | AC58: 80 | AD58: 40 | AE58: -1.136868377e-13 | AF58: -1.136868377e-13 | AG58: -1.136868377e-13 | AH58: -1.136868377e-13 | AI58: -1.136868377e-13 | AJ58: -1.136868377e-13 | AK58: -1.136868377e-13 | AL58: -1.136868377e-13 | AM58: -1.136868377e-13 | AN58: -1.136868377e-13 | AO58: -1.136868377e-13 | AP58: -1.136868377e-13 | AQ58: -1.136868377e-13 | AR58: -1.136868377e-13 | AS58: -1.136868377e-13 | AT58: -1.136868377e-13 | AU58: -1.136868377e-13 | AV58: -1.136868377e-13 | AW58: -1.136868377e-13 | AX58: -1.136868377e-13 | AY58: -1.136868377e-13 | AZ58: -1.136868377e-13 | BA58: -1.136868377e-13 | BB58: -1.136868377e-13 | BC58: -1.136868377e-13 | BD58: -1.136868377e-13 | BE58: -1.136868377e-13 | BF58: -1.136868377e-13 | BG58: -1.136868377e-13 | BH58: -1.136868377e-13 | BI58: -1.136868377e-13
B60: Interest Cost | E60: Rate | F60: =E21 -> 0.05 | I60: =I55*$F$60 -> 0 | J60: =J55*$F$60 -> 13.33333333 | K60: 26.66666667 | L60: 40 | M60: 38 | N60: 36 | O60: 34 | P60: 32 | Q60: 30 | R60: 28 | S60: 26 | T60: 24 | U60: 22 | V60: 20 | W60: 18 | X60: 16 | Y60: 14 | Z60: 12 | AA60: 10 | AB60: 8 | AC60: 6 | AD60: 4 | AE60: 2 | AF60: -5.684341886e-15 | AG60: -5.684341886e-15 | AH60: -5.684341886e-15 | AI60: -5.684341886e-15 | AJ60: -5.684341886e-15 | AK60: -5.684341886e-15 | AL60: -5.684341886e-15 | AM60: -5.684341886e-15 | AN60: -5.684341886e-15 | AO60: -5.684341886e-15 | AP60: -5.684341886e-15 | AQ60: -5.684341886e-15 | AR60: -5.684341886e-15 | AS60: -5.684341886e-15 | AT60: -5.684341886e-15 | AU60: -5.684341886e-15 | AV60: -5.684341886e-15 | AW60: -5.684341886e-15 | AX60: -5.684341886e-15 | AY60: -5.684341886e-15 | AZ60: -5.684341886e-15 | BA60: -5.684341886e-15 | BB60: -5.684341886e-15 | BC60: -5.684341886e-15 | BD60: -5.684341886e-15 | BE60: -5.684341886e-15 | BF60: -5.684341886e-15 | BG60: -5.684341886e-15 | BH60: -5.684341886e-15 | BI60: -5.684341886e-15
B61: Interest During Construction | I61: =I60*I2 -> 0 | J61: 13.33333333 | K61: 26.66666667 | L61: 0 | M61: 0 | N61: 0 | O61: 0 | P61: 0 | Q61: 0 | R61: 0 | S61: 0 | T61: 0 | U61: 0 | V61: 0 | W61: 0 | X61: 0 | Y61: 0 | Z61: 0 | AA61: 0 | AB61: 0 | AC61: 0 | AD61: 0 | AE61: 0 | AF61: 0 | AG61: 0 | AH61: 0 | AI61: 0 | AJ61: 0 | AK61: 0 | AL61: 0 | AM61: 0 | AN61: 0 | AO61: =AO60*AO2 -> 0 | AP61: 0 | AQ61: 0 | AR61: 0 | AS61: 0 | AT61: 0 | AU61: 0 | AV61: 0 | AW61: 0 | AX61: 0 | AY61: 0 | AZ61: 0 | BA61: 0 | BB61: 0 | BC61: 0 | BD61: 0 | BE61: 0 | BF61: 0 | BG61: 0 | BH61: 0 | BI61: 0
B62: Interest Expense | I62: =I60-I61 -> 0 | J62: =J60-J61 -> 0 | K62: 0 | L62: 40 | M62: 38 | N62: 36 | O62: 34 | P62: 32 | Q62: 30 | R62: 28 | S62: 26 | T62: 24 | U62: 22 | V62: 20 | W62: 18 | X62: 16 | Y62: 14 | Z62: 12 | AA62: 10 | AB62: 8 | AC62: 6 | AD62: 4 | AE62: 2 | AF62: -5.684341886e-15 | AG62: -5.684341886e-15 | AH62: -5.684341886e-15 | AI62: -5.684341886e-15 | AJ62: -5.684341886e-15 | AK62: -5.684341886e-15 | AL62: -5.684341886e-15 | AM62: -5.684341886e-15 | AN62: -5.684341886e-15 | AO62: -5.684341886e-15 | AP62: -5.684341886e-15 | AQ62: -5.684341886e-15 | AR62: -5.684341886e-15 | AS62: -5.684341886e-15 | AT62: -5.684341886e-15 | AU62: -5.684341886e-15 | AV62: -5.684341886e-15 | AW62: -5.684341886e-15 | AX62: -5.684341886e-15 | AY62: -5.684341886e-15 | AZ62: -5.684341886e-15 | BA62: -5.684341886e-15 | BB62: -5.684341886e-15 | BC62: -5.684341886e-15 | BD62: -5.684341886e-15 | BE62: -5.684341886e-15 | BF62: -5.684341886e-15 | BG62: -5.684341886e-15 | BH62: -5.684341886e-15 | BI62: -5.684341886e-15
B64: IDC
C65: Opening Balance | I65: =H67 -> 0 | J65: =I67 -> 0 | K65: 13.33333333 | L65: 40 | M65: 40 | N65: 40 | O65: 40 | P65: 40 | Q65: 40 | R65: 40 | S65: 40 | T65: 40 | U65: 40 | V65: 40 | W65: 40 | X65: 40 | Y65: 40 | Z65: 40 | AA65: 40 | AB65: 40 | AC65: 40 | AD65: 40 | AE65: 40 | AF65: 40 | AG65: 40 | AH65: 40 | AI65: 40 | AJ65: 40 | AK65: 40 | AL65: 40 | AM65: 40 | AN65: 40 | AO65: 40 | AP65: 40 | AQ65: 40 | AR65: 40 | AS65: 40 | AT65: 40 | AU65: 40 | AV65: 40 | AW65: 40 | AX65: 40 | AY65: 40 | AZ65: 40 | BA65: 40 | BB65: 40 | BC65: 40 | BD65: 40 | BE65: 40 | BF65: 40 | BG65: 40 | BH65: 40 | BI65: 40
C66: Add: IDC | I66: =I61 -> 0 | J66: =J61 -> 13.33333333 | K66: 26.66666667 | L66: 0 | M66: 0 | N66: 0 | O66: 0 | P66: 0 | Q66: 0 | R66: 0 | S66: 0 | T66: 0 | U66: 0 | V66: 0 | W66: 0 | X66: 0 | Y66: 0 | Z66: 0 | AA66: 0 | AB66: 0 | AC66: 0 | AD66: 0 | AE66: 0 | AF66: 0 | AG66: 0 | AH66: 0 | AI66: 0 | AJ66: 0 | AK66: 0 | AL66: 0 | AM66: 0 | AN66: 0 | AO66: 0 | AP66: 0 | AQ66: 0 | AR66: 0 | AS66: 0 | AT66: 0 | AU66: 0 | AV66: 0 | AW66: 0 | AX66: 0 | AY66: 0 | AZ66: 0 | BA66: 0 | BB66: 0 | BC66: 0 | BD66: 0 | BE66: 0 | BF66: 0 | BG66: 0 | BH66: 0 | BI66: 0
C67: Closing Balance | I67: =SUM(I65:I66) -> 0 | J67: =SUM(J65:J66) -> 13.33333333 | K67: 40 | L67: 40 | M67: 40 | N67: 40 | O67: 40 | P67: 40 | Q67: 40 | R67: 40 | S67: 40 | T67: 40 | U67: 40 | V67: 40 | W67: 40 | X67: 40 | Y67: 40 | Z67: 40 | AA67: 40 | AB67: 40 | AC67: 40 | AD67: 40 | AE67: 40 | AF67: 40 | AG67: 40 | AH67: 40 | AI67: 40 | AJ67: 40 | AK67: 40 | AL67: 40 | AM67: 40 | AN67: 40 | AO67: 40 | AP67: 40 | AQ67: 40 | AR67: 40 | AS67: 40 | AT67: 40 | AU67: 40 | AV67: 40 | AW67: 40 | AX67: 40 | AY67: 40 | AZ67: 40 | BA67: 40 | BB67: 40 | BC67: 40 | BD67: 40 | BE67: 40 | BF67: 40 | BG67: 40 | BH67: 40 | BI67: 40
C68: Depreciaiton | E68: Rate | F68: =F33 -> 0.03333333333 | I68: =I67*$F$68*I3 -> 0 | J68: 0 | K68: 0 | L68: 1.333333333 | M68: 1.333333333 | N68: 1.333333333 | O68: 1.333333333 | P68: 1.333333333 | Q68: 1.333333333 | R68: 1.333333333 | S68: 1.333333333 | T68: 1.333333333 | U68: 1.333333333 | V68: 1.333333333 | W68: 1.333333333 | X68: 1.333333333 | Y68: 1.333333333 | Z68: 1.333333333 | AA68: 1.333333333 | AB68: 1.333333333 | AC68: 1.333333333 | AD68: 1.333333333 | AE68: 1.333333333 | AF68: 1.333333333 | AG68: 1.333333333 | AH68: 1.333333333 | AI68: 1.333333333 | AJ68: 1.333333333 | AK68: 1.333333333 | AL68: 1.333333333 | AM68: 1.333333333 | AN68: 1.333333333 | AO68: =AO67*$F$68*AO3 -> 1.333333333 | AP68: 0 | AQ68: 0 | AR68: 0 | AS68: 0 | AT68: 0 | AU68: 0 | AV68: 0 | AW68: 0 | AX68: 0 | AY68: 0 | AZ68: 0 | BA68: 0 | BB68: 0 | BC68: 0 | BD68: 0 | BE68: 0 | BF68: 0 | BG68: 0 | BH68: 0 | BI68: 0
B70: Accumulated Depreciation | I70: =H70+I68+I33 -> 0 | J70: =I70+J68+J33 -> 0 | K70: 0 | L70: 34.66666667 | M70: 69.33333333 | N70: 104 | O70: 138.6666667 | P70: 173.3333333 | Q70: 208 | R70: 242.6666667 | S70: 277.3333333 | T70: 312 | U70: 346.6666667 | V70: 381.3333333 | W70: 416 | X70: 450.6666667 | Y70: 485.3333333 | Z70: 520 | AA70: 554.6666667 | AB70: 589.3333333 | AC70: 624 | AD70: 658.6666667 | AE70: 693.3333333 | AF70: 728 | AG70: 762.6666667 | AH70: 797.3333333 | AI70: 832 | AJ70: 866.6666667 | AK70: 901.3333333 | AL70: 936 | AM70: 970.6666667 | AN70: 1005.333333 | AO70: 1040 | AP70: 1040 | AQ70: 1040 | AR70: 1040 | AS70: 1040 | AT70: 1040 | AU70: 1040 | AV70: 1040 | AW70: 1040 | AX70: 1040 | AY70: 1040 | AZ70: 1040 | BA70: 1040 | BB70: 1040 | BC70: 1040 | BD70: 1040 | BE70: 1040 | BF70: 1040 | BG70: 1040 | BH70: 1040 | BI70: 1040
A72: Profit and Loss
B73: EBITDA | I73: =I24 -> 0 | J73: =J24 -> 0 | K73: 0 | L73: 130 | M73: 130 | N73: 130 | O73: 130 | P73: 130 | Q73: 130 | R73: 130 | S73: 130 | T73: 130 | U73: 130 | V73: 130 | W73: 130 | X73: 130 | Y73: 130 | Z73: 130 | AA73: 130 | AB73: 130 | AC73: 130 | AD73: 130 | AE73: 130 | AF73: 130 | AG73: 130 | AH73: 130 | AI73: 130 | AJ73: 130 | AK73: 130 | AL73: 130 | AM73: 130 | AN73: 130 | AO73: 130 | AP73: 0 | AQ73: 0 | AR73: 0 | AS73: 0 | AT73: 0 | AU73: 0 | AV73: 0 | AW73: 0 | AX73: 0 | AY73: 0 | AZ73: 0 | BA73: 0 | BB73: 0 | BC73: 0 | BD73: 0 | BE73: 0 | BF73: 0 | BG73: 0 | BH73: 0 | BI73: 0
B74: Less: Depreciation | I74: =I68+I33 -> 0 | J74: =J68+J33 -> 0 | K74: 0 | L74: 34.66666667 | M74: 34.66666667 | N74: 34.66666667 | O74: 34.66666667 | P74: 34.66666667 | Q74: 34.66666667 | R74: 34.66666667 | S74: 34.66666667 | T74: 34.66666667 | U74: 34.66666667 | V74: 34.66666667 | W74: 34.66666667 | X74: 34.66666667 | Y74: 34.66666667 | Z74: 34.66666667 | AA74: 34.66666667 | AB74: 34.66666667 | AC74: 34.66666667 | AD74: 34.66666667 | AE74: 34.66666667 | AF74: 34.66666667 | AG74: 34.66666667 | AH74: 34.66666667 | AI74: 34.66666667 | AJ74: 34.66666667 | AK74: 34.66666667 | AL74: 34.66666667 | AM74: 34.66666667 | AN74: 34.66666667 | AO74: 34.66666667 | AP74: 0 | AQ74: 0 | AR74: 0 | AS74: 0 | AT74: 0 | AU74: 0 | AV74: 0 | AW74: 0 | AX74: 0 | AY74: 0 | AZ74: 0 | BA74: 0 | BB74: 0 | BC74: 0 | BD74: 0 | BE74: 0 | BF74: 0 | BG74: 0 | BH74: 0 | BI74: 0
C75: EBIT | I75: =I73-I74 -> 0 | J75: =J73-J74 -> 0 | K75: 0 | L75: 95.33333333 | M75: 95.33333333 | N75: 95.33333333 | O75: 95.33333333 | P75: 95.33333333 | Q75: 95.33333333 | R75: 95.33333333 | S75: 95.33333333 | T75: 95.33333333 | U75: 95.33333333 | V75: 95.33333333 | W75: 95.33333333 | X75: 95.33333333 | Y75: 95.33333333 | Z75: 95.33333333 | AA75: 95.33333333 | AB75: 95.33333333 | AC75: 95.33333333 | AD75: 95.33333333 | AE75: 95.33333333 | AF75: 95.33333333 | AG75: 95.33333333 | AH75: 95.33333333 | AI75: 95.33333333 | AJ75: 95.33333333 | AK75: 95.33333333 | AL75: 95.33333333 | AM75: 95.33333333 | AN75: 95.33333333 | AO75: 95.33333333 | AP75: 0 | AQ75: 0 | AR75: 0 | AS75: 0 | AT75: 0 | AU75: 0 | AV75: 0 | AW75: 0 | AX75: 0 | AY75: 0 | AZ75: 0 | BA75: 0 | BB75: 0 | BC75: 0 | BD75: 0 | BE75: 0 | BF75: 0 | BG75: 0 | BH75: 0 | BI75: 0
B76: Less: Interest Expense | I76: =I62 -> 0 | J76: =J62 -> 0 | K76: 0 | L76: 40 | M76: 38 | N76: 36 | O76: 34 | P76: 32 | Q76: 30 | R76: 28 | S76: 26 | T76: 24 | U76: 22 | V76: 20 | W76: 18 | X76: 16 | Y76: 14 | Z76: 12 | AA76: 10 | AB76: 8 | AC76: 6 | AD76: 4 | AE76: 2 | AF76: -5.684341886e-15 | AG76: -5.684341886e-15 | AH76: -5.684341886e-15 | AI76: -5.684341886e-15 | AJ76: -5.684341886e-15 | AK76: -5.684341886e-15 | AL76: -5.684341886e-15 | AM76: -5.684341886e-15 | AN76: -5.684341886e-15 | AO76: -5.684341886e-15 | AP76: -5.684341886e-15 | AQ76: -5.684341886e-15 | AR76: -5.684341886e-15 | AS76: -5.684341886e-15 | AT76: -5.684341886e-15 | AU76: -5.684341886e-15 | AV76: -5.684341886e-15 | AW76: -5.684341886e-15 | AX76: -5.684341886e-15 | AY76: -5.684341886e-15 | AZ76: -5.684341886e-15 | BA76: -5.684341886e-15 | BB76: -5.684341886e-15 | BC76: -5.684341886e-15 | BD76: -5.684341886e-15 | BE76: -5.684341886e-15 | BF76: -5.684341886e-15 | BG76: -5.684341886e-15 | BH76: -5.684341886e-15 | BI76: -5.684341886e-15
C77: EBT | I77: =I75-I76 -> 0 | J77: =J75-J76 -> 0 | K77: 0 | L77: 55.33333333 | M77: 57.33333333 | N77: 59.33333333 | O77: 61.33333333 | P77: 63.33333333 | Q77: 65.33333333 | R77: 67.33333333 | S77: 69.33333333 | T77: 71.33333333 | U77: 73.33333333 | V77: 75.33333333 | W77: 77.33333333 | X77: 79.33333333 | Y77: 81.33333333 | Z77: 83.33333333 | AA77: 85.33333333 | AB77: 87.33333333 | AC77: 89.33333333 | AD77: 91.33333333 | AE77: 93.33333333 | AF77: 95.33333333 | AG77: 95.33333333 | AH77: 95.33333333 | AI77: 95.33333333 | AJ77: 95.33333333 | AK77: 95.33333333 | AL77: 95.33333333 | AM77: 95.33333333 | AN77: 95.33333333 | AO77: 95.33333333 | AP77: 5.684341886e-15 | AQ77: 5.684341886e-15 | AR77: 5.684341886e-15 | AS77: 5.684341886e-15 | AT77: 5.684341886e-15 | AU77: 5.684341886e-15 | AV77: 5.684341886e-15 | AW77: 5.684341886e-15 | AX77: 5.684341886e-15 | AY77: 5.684341886e-15 | AZ77: 5.684341886e-15 | BA77: 5.684341886e-15 | BB77: 5.684341886e-15 | BC77: 5.684341886e-15 | BD77: 5.684341886e-15 | BE77: 5.684341886e-15 | BF77: 5.684341886e-15 | BG77: 5.684341886e-15 | BH77: 5.684341886e-15 | BI77: 5.684341886e-15
B78: Less: Taxes | E78: Rate | F78: =E16 -> 0.25 | I78: =I77*$F$78 -> 0 | J78: =J77*$F$78 -> 0 | K78: 0 | L78: 13.83333333 | M78: 14.33333333 | N78: 14.83333333 | O78: 15.33333333 | P78: 15.83333333 | Q78: 16.33333333 | R78: 16.83333333 | S78: 17.33333333 | T78: 17.83333333 | U78: 18.33333333 | V78: 18.83333333 | W78: 19.33333333 | X78: 19.83333333 | Y78: 20.33333333 | Z78: 20.83333333 | AA78: 21.33333333 | AB78: 21.83333333 | AC78: 22.33333333 | AD78: 22.83333333 | AE78: 23.33333333 | AF78: 23.83333333 | AG78: 23.83333333 | AH78: 23.83333333 | AI78: 23.83333333 | AJ78: 23.83333333 | AK78: 23.83333333 | AL78: 23.83333333 | AM78: 23.83333333 | AN78: 23.83333333 | AO78: 23.83333333 | AP78: 1.421085472e-15 | AQ78: 1.421085472e-15 | AR78: 1.421085472e-15 | AS78: 1.421085472e-15 | AT78: 1.421085472e-15 | AU78: 1.421085472e-15 | AV78: 1.421085472e-15 | AW78: 1.421085472e-15 | AX78: 1.421085472e-15 | AY78: 1.421085472e-15 | AZ78: 1.421085472e-15 | BA78: 1.421085472e-15 | BB78: 1.421085472e-15 | BC78: 1.421085472e-15 | BD78: 1.421085472e-15 | BE78: 1.421085472e-15 | BF78: 1.421085472e-15 | BG78: 1.421085472e-15 | BH78: 1.421085472e-15 | BI78: 1.421085472e-15
C79: Earnings | I79: =I77-I78 -> 0 | J79: =J77-J78 -> 0 | K79: 0 | L79: 41.5 | M79: 43 | N79: 44.5 | O79: 46 | P79: 47.5 | Q79: 49 | R79: 50.5 | S79: 52 | T79: 53.5 | U79: 55 | V79: 56.5 | W79: 58 | X79: 59.5 | Y79: 61 | Z79: 62.5 | AA79: 64 | AB79: 65.5 | AC79: 67 | AD79: 68.5 | AE79: 70 | AF79: 71.5 | AG79: 71.5 | AH79: 71.5 | AI79: 71.5 | AJ79: 71.5 | AK79: 71.5 | AL79: 71.5 | AM79: 71.5 | AN79: 71.5 | AO79: 71.5 | AP79: 4.263256415e-15 | AQ79: 4.263256415e-15 | AR79: 4.263256415e-15 | AS79: 4.263256415e-15 | AT79: 4.263256415e-15 | AU79: 4.263256415e-15 | AV79: 4.263256415e-15 | AW79: 4.263256415e-15 | AX79: 4.263256415e-15 | AY79: 4.263256415e-15 | AZ79: 4.263256415e-15 | BA79: 4.263256415e-15 | BB79: 4.263256415e-15 | BC79: 4.263256415e-15 | BD79: 4.263256415e-15 | BE79: 4.263256415e-15 | BF79: 4.263256415e-15 | BG79: 4.263256415e-15 | BH79: 4.263256415e-15 | BI79: 4.263256415e-15
A81: Cash Flow Waterfall
B82: EBITDA | I82: =I73 -> 0 | J82: =J73 -> 0 | K82: 0 | L82: 130 | M82: 130 | N82: 130 | O82: 130 | P82: 130 | Q82: 130 | R82: 130 | S82: 130 | T82: 130 | U82: 130 | V82: 130 | W82: 130 | X82: 130 | Y82: 130 | Z82: 130 | AA82: 130 | AB82: 130 | AC82: 130 | AD82: 130 | AE82: 130 | AF82: 130 | AG82: 130 | AH82: 130 | AI82: 130 | AJ82: 130 | AK82: 130 | AL82: 130 | AM82: 130 | AN82: 130 | AO82: 130 | AP82: 0 | AQ82: 0 | AR82: 0 | AS82: 0 | AT82: 0 | AU82: 0 | AV82: 0 | AW82: 0 | AX82: 0 | AY82: 0 | AZ82: 0 | BA82: 0 | BB82: 0 | BC82: 0 | BD82: 0 | BE82: 0 | BF82: 0 | BG82: 0 | BH82: 0 | BI82: 0
B83: Less: Taxes | I83: =I78 -> 0 | J83: =J78 -> 0 | K83: 0 | L83: 13.83333333 | M83: 14.33333333 | N83: 14.83333333 | O83: 15.33333333 | P83: 15.83333333 | Q83: 16.33333333 | R83: 16.83333333 | S83: 17.33333333 | T83: 17.83333333 | U83: 18.33333333 | V83: 18.83333333 | W83: 19.33333333 | X83: 19.83333333 | Y83: 20.33333333 | Z83: 20.83333333 | AA83: 21.33333333 | AB83: 21.83333333 | AC83: 22.33333333 | AD83: 22.83333333 | AE83: 23.33333333 | AF83: 23.83333333 | AG83: 23.83333333 | AH83: 23.83333333 | AI83: 23.83333333 | AJ83: 23.83333333 | AK83: 23.83333333 | AL83: 23.83333333 | AM83: 23.83333333 | AN83: 23.83333333 | AO83: 23.83333333 | AP83: 1.421085472e-15 | AQ83: 1.421085472e-15 | AR83: 1.421085472e-15 | AS83: 1.421085472e-15 | AT83: 1.421085472e-15 | AU83: 1.421085472e-15 | AV83: 1.421085472e-15 | AW83: 1.421085472e-15 | AX83: 1.421085472e-15 | AY83: 1.421085472e-15 | AZ83: 1.421085472e-15 | BA83: 1.421085472e-15 | BB83: 1.421085472e-15 | BC83: 1.421085472e-15 | BD83: 1.421085472e-15 | BE83: 1.421085472e-15 | BF83: 1.421085472e-15 | BG83: 1.421085472e-15 | BH83: 1.421085472e-15 | BI83: 1.421085472e-15
C84: CFADS | I84: =I82-I83 -> 0 | J84: =J82-J83 -> 0 | K84: 0 | L84: 116.1666667 | M84: 115.6666667 | N84: 115.1666667 | O84: 114.6666667 | P84: 114.1666667 | Q84: 113.6666667 | R84: 113.1666667 | S84: 112.6666667 | T84: 112.1666667 | U84: 111.6666667 | V84: 111.1666667 | W84: 110.6666667 | X84: 110.1666667 | Y84: 109.6666667 | Z84: 109.1666667 | AA84: 108.6666667 | AB84: 108.1666667 | AC84: 107.6666667 | AD84: 107.1666667 | AE84: 106.6666667 | AF84: 106.1666667 | AG84: 106.1666667 | AH84: 106.1666667 | AI84: 106.1666667 | AJ84: 106.1666667 | AK84: 106.1666667 | AL84: 106.1666667 | AM84: 106.1666667 | AN84: 106.1666667 | AO84: 106.1666667 | AP84: -1.421085472e-15 | AQ84: -1.421085472e-15 | AR84: -1.421085472e-15 | AS84: -1.421085472e-15 | AT84: -1.421085472e-15 | AU84: -1.421085472e-15 | AV84: -1.421085472e-15 | AW84: -1.421085472e-15 | AX84: -1.421085472e-15 | AY84: -1.421085472e-15 | AZ84: -1.421085472e-15 | BA84: -1.421085472e-15 | BB84: -1.421085472e-15 | BC84: -1.421085472e-15 | BD84: -1.421085472e-15 | BE84: -1.421085472e-15 | BF84: -1.421085472e-15 | BG84: -1.421085472e-15 | BH84: -1.421085472e-15 | BI84: -1.421085472e-15
B85: Less: Interest Expense | I85: =I62 -> 0 | J85: =J62 -> 0 | K85: 0 | L85: 40 | M85: 38 | N85: 36 | O85: 34 | P85: 32 | Q85: 30 | R85: 28 | S85: 26 | T85: 24 | U85: 22 | V85: 20 | W85: 18 | X85: 16 | Y85: 14 | Z85: 12 | AA85: 10 | AB85: 8 | AC85: 6 | AD85: 4 | AE85: 2 | AF85: -5.684341886e-15 | AG85: -5.684341886e-15 | AH85: -5.684341886e-15 | AI85: -5.684341886e-15 | AJ85: -5.684341886e-15 | AK85: -5.684341886e-15 | AL85: -5.684341886e-15 | AM85: -5.684341886e-15 | AN85: -5.684341886e-15 | AO85: -5.684341886e-15 | AP85: -5.684341886e-15 | AQ85: -5.684341886e-15 | AR85: -5.684341886e-15 | AS85: -5.684341886e-15 | AT85: -5.684341886e-15 | AU85: -5.684341886e-15 | AV85: -5.684341886e-15 | AW85: -5.684341886e-15 | AX85: -5.684341886e-15 | AY85: -5.684341886e-15 | AZ85: -5.684341886e-15 | BA85: -5.684341886e-15 | BB85: -5.684341886e-15 | BC85: -5.684341886e-15 | BD85: -5.684341886e-15 | BE85: -5.684341886e-15 | BF85: -5.684341886e-15 | BG85: -5.684341886e-15 | BH85: -5.684341886e-15 | BI85: -5.684341886e-15
B86: Less: Debt Repayments | I86: =I57 -> 0 | J86: =J57 -> 0 | K86: 0 | L86: 40 | M86: 40 | N86: 40 | O86: 40 | P86: 40 | Q86: 40 | R86: 40 | S86: 40 | T86: 40 | U86: 40 | V86: 40 | W86: 40 | X86: 40 | Y86: 40 | Z86: 40 | AA86: 40 | AB86: 40 | AC86: 40 | AD86: 40 | AE86: 40 | AF86: 0 | AG86: 0 | AH86: 0 | AI86: 0 | AJ86: 0 | AK86: 0 | AL86: 0 | AM86: 0 | AN86: 0 | AO86: 0 | AP86: 0 | AQ86: 0 | AR86: 0 | AS86: 0 | AT86: 0 | AU86: 0 | AV86: 0 | AW86: 0 | AX86: 0 | AY86: 0 | AZ86: 0 | BA86: 0 | BB86: 0 | BC86: 0 | BD86: 0 | BE86: 0 | BF86: 0 | BG86: 0 | BH86: 0 | BI86: 0
C87: Dividends | I87: =I84-I85-I86 -> 0 | J87: =J84-J85-J86 -> 0 | K87: 0 | L87: 36.16666667 | M87: 37.66666667 | N87: 39.16666667 | O87: 40.66666667 | P87: 42.16666667 | Q87: 43.66666667 | R87: 45.16666667 | S87: 46.66666667 | T87: 48.16666667 | U87: 49.66666667 | V87: 51.16666667 | W87: 52.66666667 | X87: 54.16666667 | Y87: 55.66666667 | Z87: 57.16666667 | AA87: 58.66666667 | AB87: 60.16666667 | AC87: 61.66666667 | AD87: 63.16666667 | AE87: 64.66666667 | AF87: 106.1666667 | AG87: 106.1666667 | AH87: 106.1666667 | AI87: 106.1666667 | AJ87: 106.1666667 | AK87: 106.1666667 | AL87: 106.1666667 | AM87: 106.1666667 | AN87: 106.1666667 | AO87: 106.1666667 | AP87: 4.263256415e-15 | AQ87: 4.263256415e-15 | AR87: 4.263256415e-15 | AS87: 4.263256415e-15 | AT87: 4.263256415e-15 | AU87: 4.263256415e-15 | AV87: 4.263256415e-15 | AW87: 4.263256415e-15 | AX87: 4.263256415e-15 | AY87: 4.263256415e-15 | AZ87: 4.263256415e-15 | BA87: 4.263256415e-15 | BB87: 4.263256415e-15 | BC87: 4.263256415e-15 | BD87: 4.263256415e-15 | BE87: 4.263256415e-15 | BF87: 4.263256415e-15 | BG87: 4.263256415e-15 | BH87: 4.263256415e-15 | BI87: 4.263256415e-15
A89: Debt Service Coverage
B90: CFADS | I90: =I84 -> 0 | J90: =J84 -> 0 | K90: 0 | L90: 116.1666667 | M90: 115.6666667 | N90: 115.1666667 | O90: 114.6666667 | P90: 114.1666667 | Q90: 113.6666667 | R90: 113.1666667 | S90: 112.6666667 | T90: 112.1666667 | U90: 111.6666667 | V90: 111.1666667 | W90: 110.6666667 | X90: 110.1666667 | Y90: 109.6666667 | Z90: 109.1666667 | AA90: 108.6666667 | AB90: 108.1666667 | AC90: 107.6666667 | AD90: 107.1666667 | AE90: 106.6666667 | AF90: 106.1666667 | AG90: 106.1666667 | AH90: 106.1666667 | AI90: 106.1666667 | AJ90: 106.1666667 | AK90: 106.1666667 | AL90: 106.1666667 | AM90: 106.1666667 | AN90: 106.1666667 | AO90: 106.1666667 | AP90: -1.421085472e-15 | AQ90: -1.421085472e-15 | AR90: -1.421085472e-15 | AS90: -1.421085472e-15 | AT90: -1.421085472e-15 | AU90: -1.421085472e-15 | AV90: -1.421085472e-15 | AW90: -1.421085472e-15 | AX90: -1.421085472e-15 | AY90: -1.421085472e-15 | AZ90: -1.421085472e-15 | BA90: -1.421085472e-15 | BB90: -1.421085472e-15 | BC90: -1.421085472e-15 | BD90: -1.421085472e-15 | BE90: -1.421085472e-15 | BF90: -1.421085472e-15 | BG90: -1.421085472e-15 | BH90: -1.421085472e-15 | BI90: -1.421085472e-15
B91: Debt Service | I91: =I85+I86 -> 0 | J91: =J85+J86 -> 0 | K91: 0 | L91: 80 | M91: 78 | N91: 76 | O91: 74 | P91: 72 | Q91: 70 | R91: 68 | S91: 66 | T91: 64 | U91: 62 | V91: 60 | W91: 58 | X91: 56 | Y91: 54 | Z91: 52 | AA91: 50 | AB91: 48 | AC91: 46 | AD91: 44 | AE91: 42 | AF91: -5.684341886e-15 | AG91: -5.684341886e-15 | AH91: -5.684341886e-15 | AI91: -5.684341886e-15 | AJ91: -5.684341886e-15 | AK91: -5.684341886e-15 | AL91: -5.684341886e-15 | AM91: -5.684341886e-15 | AN91: -5.684341886e-15 | AO91: -5.684341886e-15 | AP91: -5.684341886e-15 | AQ91: -5.684341886e-15 | AR91: -5.684341886e-15 | AS91: -5.684341886e-15 | AT91: -5.684341886e-15 | AU91: -5.684341886e-15 | AV91: -5.684341886e-15 | AW91: -5.684341886e-15 | AX91: -5.684341886e-15 | AY91: -5.684341886e-15 | AZ91: -5.684341886e-15 | BA91: -5.684341886e-15 | BB91: -5.684341886e-15 | BC91: -5.684341886e-15 | BD91: -5.684341886e-15 | BE91: -5.684341886e-15 | BF91: -5.684341886e-15 | BG91: -5.684341886e-15 | BH91: -5.684341886e-15 | BI91: -5.684341886e-15
C92: DSCR | E92: Min | F92: =MIN(I92:BI92) -> 1.452083333 | I92: =IF(I91>0.1,I90/I91) -> FALSE | J92: =IF(J91>0.1,J90/J91) -> FALSE | K92: FALSE | L92: 1.452083333 | M92: 1.482905983 | N92: 1.515350877 | O92: 1.54954955 | P92: 1.585648148 | Q92: 1.623809524 | R92: 1.664215686 | S92: 1.707070707 | T92: 1.752604167 | U92: 1.801075269 | V92: 1.852777778 | W92: 1.908045977 | X92: 1.967261905 | Y92: 2.030864198 | Z92: 2.099358974 | AA92: 2.173333333 | AB92: 2.253472222 | AC92: 2.34057971 | AD92: 2.435606061 | AE92: 2.53968254 | AF92: FALSE | AG92: FALSE | AH92: FALSE | AI92: FALSE | AJ92: FALSE | AK92: FALSE | AL92: FALSE | AM92: FALSE | AN92: FALSE | AO92: FALSE | AP92: FALSE | AQ92: FALSE | AR92: FALSE | AS92: FALSE | AT92: FALSE | AU92: FALSE | AV92: FALSE | AW92: FALSE | AX92: FALSE | AY92: FALSE | AZ92: FALSE | BA92: FALSE | BB92: FALSE | BC92: FALSE | BD92: FALSE | BE92: FALSE | BF92: FALSE | BG92: FALSE | BH92: FALSE | BI92: FALSE
C94: Equity Cash Flow | I94: =I87-I51 -> -66.66666667 | J94: =J87-J51 -> -80 | K94: -93.33333333 | L94: 36.16666667 | M94: 37.66666667 | N94: 39.16666667 | O94: 40.66666667 | P94: 42.16666667 | Q94: 43.66666667 | R94: 45.16666667 | S94: 46.66666667 | T94: 48.16666667 | U94: 49.66666667 | V94: 51.16666667 | W94: 52.66666667 | X94: 54.16666667 | Y94: 55.66666667 | Z94: 57.16666667 | AA94: 58.66666667 | AB94: 60.16666667 | AC94: 61.66666667 | AD94: 63.16666667 | AE94: 64.66666667 | AF94: 106.1666667 | AG94: 106.1666667 | AH94: 106.1666667 | AI94: 106.1666667 | AJ94: 106.1666667 | AK94: 106.1666667 | AL94: 106.1666667 | AM94: 106.1666667 | AN94: 106.1666667 | AO94: 106.1666667 | AP94: 4.263256415e-15 | AQ94: 4.263256415e-15 | AR94: 4.263256415e-15 | AS94: 4.263256415e-15 | AT94: 4.263256415e-15 | AU94: 4.263256415e-15 | AV94: 4.263256415e-15 | AW94: 4.263256415e-15 | AX94: 4.263256415e-15 | AY94: 4.263256415e-15 | AZ94: 4.263256415e-15 | BA94: 4.263256415e-15 | BB94: 4.263256415e-15 | BC94: 4.263256415e-15 | BD94: 4.263256415e-15 | BE94: 4.263256415e-15 | BF94: 4.263256415e-15 | BG94: 4.263256415e-15 | BH94: 4.263256415e-15 | BI94: 4.263256415e-15
C95: Equity IRR | E95: Result | F95: =IRR(94:94) -> 0.16478243
A97: Equity Balance
B98: Opening Balance | I98: =H102 -> 0 | J98: =I102 -> 66.66666667 | K98: 146.6666667 | L98: 240 | M98: 245.3333333 | N98: 250.6666667 | O98: 256 | P98: 261.3333333 | Q98: 266.6666667 | R98: 272 | S98: 277.3333333 | T98: 282.6666667 | U98: 288 | V98: 293.3333333 | W98: 298.6666667 | X98: 304 | Y98: 309.3333333 | Z98: 314.6666667 | AA98: 320 | AB98: 325.3333333 | AC98: 330.6666667 | AD98: 336 | AE98: 341.3333333 | AF98: 346.6666667 | AG98: 312 | AH98: 277.3333333 | AI98: 242.6666667 | AJ98: 208 | AK98: 173.3333333 | AL98: 138.6666667 | AM98: 104 | AN98: 69.33333333 | AO98: 34.66666667 | AP98: -4.831690603e-13 | AQ98: -4.831690603e-13 | AR98: -4.831690603e-13 | AS98: -4.831690603e-13 | AT98: -4.831690603e-13 | AU98: -4.831690603e-13 | AV98: -4.831690603e-13 | AW98: -4.831690603e-13 | AX98: -4.831690603e-13 | AY98: -4.831690603e-13 | AZ98: -4.831690603e-13 | BA98: -4.831690603e-13 | BB98: -4.831690603e-13 | BC98: -4.831690603e-13 | BD98: -4.831690603e-13 | BE98: -4.831690603e-13 | BF98: -4.831690603e-13 | BG98: -4.831690603e-13 | BH98: -4.831690603e-13 | BI98: -4.831690603e-13
B99: Add: Contributions | I99: =I51 -> 66.66666667 | J99: =J51 -> 80 | K99: 93.33333333 | L99: 0 | M99: 0 | N99: 0 | O99: 0 | P99: 0 | Q99: 0 | R99: 0 | S99: 0 | T99: 0 | U99: 0 | V99: 0 | W99: 0 | X99: 0 | Y99: 0 | Z99: 0 | AA99: 0 | AB99: 0 | AC99: 0 | AD99: 0 | AE99: 0 | AF99: 0 | AG99: 0 | AH99: 0 | AI99: 0 | AJ99: 0 | AK99: 0 | AL99: 0 | AM99: 0 | AN99: 0 | AO99: 0 | AP99: 0 | AQ99: 0 | AR99: 0 | AS99: 0 | AT99: 0 | AU99: 0 | AV99: 0 | AW99: 0 | AX99: 0 | AY99: 0 | AZ99: 0 | BA99: 0 | BB99: 0 | BC99: 0 | BD99: 0 | BE99: 0 | BF99: 0 | BG99: 0 | BH99: 0 | BI99: 0
B100: Add: Net Income | I100: =I79 -> 0 | J100: =J79 -> 0 | K100: 0 | L100: 41.5 | M100: 43 | N100: 44.5 | O100: 46 | P100: 47.5 | Q100: 49 | R100: 50.5 | S100: 52 | T100: 53.5 | U100: 55 | V100: 56.5 | W100: 58 | X100: 59.5 | Y100: 61 | Z100: 62.5 | AA100: 64 | AB100: 65.5 | AC100: 67 | AD100: 68.5 | AE100: 70 | AF100: 71.5 | AG100: 71.5 | AH100: 71.5 | AI100: 71.5 | AJ100: 71.5 | AK100: 71.5 | AL100: 71.5 | AM100: 71.5 | AN100: 71.5 | AO100: 71.5 | AP100: 4.263256415e-15 | AQ100: 4.263256415e-15 | AR100: 4.263256415e-15 | AS100: 4.263256415e-15 | AT100: 4.263256415e-15 | AU100: 4.263256415e-15 | AV100: 4.263256415e-15 | AW100: 4.263256415e-15 | AX100: 4.263256415e-15 | AY100: 4.263256415e-15 | AZ100: 4.263256415e-15 | BA100: 4.263256415e-15 | BB100: 4.263256415e-15 | BC100: 4.263256415e-15 | BD100: 4.263256415e-15 | BE100: 4.263256415e-15 | BF100: 4.263256415e-15 | BG100: 4.263256415e-15 | BH100: 4.263256415e-15 | BI100: 4.263256415e-15
B101: Less: Dividends | I101: =I87 -> 0 | J101: =J87 -> 0 | K101: 0 | L101: 36.16666667 | M101: 37.66666667 | N101: 39.16666667 | O101: 40.66666667 | P101: 42.16666667 | Q101: 43.66666667 | R101: 45.16666667 | S101: 46.66666667 | T101: 48.16666667 | U101: 49.66666667 | V101: 51.16666667 | W101: 52.66666667 | X101: 54.16666667 | Y101: 55.66666667 | Z101: 57.16666667 | AA101: 58.66666667 | AB101: 60.16666667 | AC101: 61.66666667 | AD101: 63.16666667 | AE101: 64.66666667 | AF101: 106.1666667 | AG101: 106.1666667 | AH101: 106.1666667 | AI101: 106.1666667 | AJ101: 106.1666667 | AK101: 106.1666667 | AL101: 106.1666667 | AM101: 106.1666667 | AN101: 106.1666667 | AO101: 106.1666667 | AP101: 4.263256415e-15 | AQ101: 4.263256415e-15 | AR101: 4.263256415e-15 | AS101: 4.263256415e-15 | AT101: 4.263256415e-15 | AU101: 4.263256415e-15 | AV101: 4.263256415e-15 | AW101: 4.263256415e-15 | AX101: 4.263256415e-15 | AY101: 4.263256415e-15 | AZ101: 4.263256415e-15 | BA101: 4.263256415e-15 | BB101: 4.263256415e-15 | BC101: 4.263256415e-15 | BD101: 4.263256415e-15 | BE101: 4.263256415e-15 | BF101: 4.263256415e-15 | BG101: 4.263256415e-15 | BH101: 4.263256415e-15 | BI101: 4.263256415e-15
B102: Closing Balance | I102: =I98+I99+I100-I101 -> 66.66666667 | J102: =J98+J99+J100-J101 -> 146.6666667 | K102: 240 | L102: 245.3333333 | M102: 250.6666667 | N102: 256 | O102: 261.3333333 | P102: 266.6666667 | Q102: 272 | R102: 277.3333333 | S102: 282.6666667 | T102: 288 | U102: 293.3333333 | V102: 298.6666667 | W102: 304 | X102: 309.3333333 | Y102: 314.6666667 | Z102: 320 | AA102: 325.3333333 | AB102: 330.6666667 | AC102: 336 | AD102: 341.3333333 | AE102: 346.6666667 | AF102: 312 | AG102: 277.3333333 | AH102: 242.6666667 | AI102: 208 | AJ102: 173.3333333 | AK102: 138.6666667 | AL102: 104 | AM102: 69.33333333 | AN102: 34.66666667 | AO102: -4.831690603e-13 | AP102: -4.831690603e-13 | AQ102: -4.831690603e-13 | AR102: -4.831690603e-13 | AS102: -4.831690603e-13 | AT102: -4.831690603e-13 | AU102: -4.831690603e-13 | AV102: -4.831690603e-13 | AW102: -4.831690603e-13 | AX102: -4.831690603e-13 | AY102: -4.831690603e-13 | AZ102: -4.831690603e-13 | BA102: -4.831690603e-13 | BB102: -4.831690603e-13 | BC102: -4.831690603e-13 | BD102: -4.831690603e-13 | BE102: -4.831690603e-13 | BF102: -4.831690603e-13 | BG102: -4.831690603e-13 | BH102: -4.831690603e-13 | BI102: -4.831690603e-13
A104: Balance Sheet
B105: Gross Plant | I105: =I32 -> 333.3333333 | J105: =J32 -> 666.6666667 | K105: 1000 | L105: 1000 | M105: 1000 | N105: 1000 | O105: 1000 | P105: 1000 | Q105: 1000 | R105: 1000 | S105: 1000 | T105: 1000 | U105: 1000 | V105: 1000 | W105: 1000 | X105: 1000 | Y105: 1000 | Z105: 1000 | AA105: 1000 | AB105: 1000 | AC105: 1000 | AD105: 1000 | AE105: 1000 | AF105: 1000 | AG105: 1000 | AH105: 1000 | AI105: 1000 | AJ105: 1000 | AK105: 1000 | AL105: 1000 | AM105: 1000 | AN105: 1000 | AO105: 1000 | AP105: 1000 | AQ105: 1000 | AR105: 1000 | AS105: 1000 | AT105: 1000 | AU105: 1000 | AV105: 1000 | AW105: 1000 | AX105: 1000 | AY105: 1000 | AZ105: 1000 | BA105: 1000 | BB105: 1000 | BC105: 1000 | BD105: 1000 | BE105: 1000 | BF105: 1000 | BG105: 1000 | BH105: 1000 | BI105: 1000
B106: IDC Balance | I106: =I67 -> 0 | J106: =J67 -> 13.33333333 | K106: 40 | L106: 40 | M106: 40 | N106: 40 | O106: 40 | P106: 40 | Q106: 40 | R106: 40 | S106: 40 | T106: 40 | U106: 40 | V106: 40 | W106: 40 | X106: 40 | Y106: 40 | Z106: 40 | AA106: 40 | AB106: 40 | AC106: 40 | AD106: 40 | AE106: 40 | AF106: 40 | AG106: 40 | AH106: 40 | AI106: 40 | AJ106: 40 | AK106: 40 | AL106: 40 | AM106: 40 | AN106: 40 | AO106: 40 | AP106: 40 | AQ106: 40 | AR106: 40 | AS106: 40 | AT106: 40 | AU106: 40 | AV106: 40 | AW106: 40 | AX106: 40 | AY106: 40 | AZ106: 40 | BA106: 40 | BB106: 40 | BC106: 40 | BD106: 40 | BE106: 40 | BF106: 40 | BG106: 40 | BH106: 40 | BI106: 40
B107: Accumulated Depreciation | I107: =-I70 -> 0 | J107: =-J70 -> 0 | K107: 0 | L107: -34.66666667 | M107: -69.33333333 | N107: -104 | O107: -138.6666667 | P107: -173.3333333 | Q107: -208 | R107: -242.6666667 | S107: -277.3333333 | T107: -312 | U107: -346.6666667 | V107: -381.3333333 | W107: -416 | X107: -450.6666667 | Y107: -485.3333333 | Z107: -520 | AA107: -554.6666667 | AB107: -589.3333333 | AC107: -624 | AD107: -658.6666667 | AE107: -693.3333333 | AF107: -728 | AG107: -762.6666667 | AH107: -797.3333333 | AI107: -832 | AJ107: -866.6666667 | AK107: -901.3333333 | AL107: -936 | AM107: -970.6666667 | AN107: -1005.333333 | AO107: -1040 | AP107: -1040 | AQ107: -1040 | AR107: -1040 | AS107: -1040 | AT107: -1040 | AU107: -1040 | AV107: -1040 | AW107: -1040 | AX107: -1040 | AY107: -1040 | AZ107: -1040 | BA107: -1040 | BB107: -1040 | BC107: -1040 | BD107: -1040 | BE107: -1040 | BF107: -1040 | BG107: -1040 | BH107: -1040 | BI107: -1040
C108: Total Assets | I108: =SUM(I105:I107) -> 333.3333333 | J108: =SUM(J105:J107) -> 680 | K108: 1040 | L108: 1005.333333 | M108: 970.6666667 | N108: 936 | O108: 901.3333333 | P108: 866.6666667 | Q108: 832 | R108: 797.3333333 | S108: 762.6666667 | T108: 728 | U108: 693.3333333 | V108: 658.6666667 | W108: 624 | X108: 589.3333333 | Y108: 554.6666667 | Z108: 520 | AA108: 485.3333333 | AB108: 450.6666667 | AC108: 416 | AD108: 381.3333333 | AE108: 346.6666667 | AF108: 312 | AG108: 277.3333333 | AH108: 242.6666667 | AI108: 208 | AJ108: 173.3333333 | AK108: 138.6666667 | AL108: 104 | AM108: 69.33333333 | AN108: 34.66666667 | AO108: 0 | AP108: 0 | AQ108: 0 | AR108: 0 | AS108: 0 | AT108: 0 | AU108: 0 | AV108: 0 | AW108: 0 | AX108: 0 | AY108: 0 | AZ108: 0 | BA108: 0 | BB108: 0 | BC108: 0 | BD108: 0 | BE108: 0 | BF108: 0 | BG108: 0 | BH108: 0 | BI108: 0
B110: Debt Balance | I110: =I58 -> 266.6666667 | J110: =J58 -> 533.3333333 | K110: 800 | L110: 760 | M110: 720 | N110: 680 | O110: 640 | P110: 600 | Q110: 560 | R110: 520 | S110: 480 | T110: 440 | U110: 400 | V110: 360 | W110: 320 | X110: 280 | Y110: 240 | Z110: 200 | AA110: 160 | AB110: 120 | AC110: 80 | AD110: 40 | AE110: -1.136868377e-13 | AF110: -1.136868377e-13 | AG110: -1.136868377e-13 | AH110: -1.136868377e-13 | AI110: -1.136868377e-13 | AJ110: -1.136868377e-13 | AK110: -1.136868377e-13 | AL110: -1.136868377e-13 | AM110: -1.136868377e-13 | AN110: -1.136868377e-13 | AO110: -1.136868377e-13 | AP110: -1.136868377e-13 | AQ110: -1.136868377e-13 | AR110: -1.136868377e-13 | AS110: -1.136868377e-13 | AT110: -1.136868377e-13 | AU110: -1.136868377e-13 | AV110: -1.136868377e-13 | AW110: -1.136868377e-13 | AX110: -1.136868377e-13 | AY110: -1.136868377e-13 | AZ110: -1.136868377e-13 | BA110: -1.136868377e-13 | BB110: -1.136868377e-13 | BC110: -1.136868377e-13 | BD110: -1.136868377e-13 | BE110: -1.136868377e-13 | BF110: -1.136868377e-13 | BG110: -1.136868377e-13 | BH110: -1.136868377e-13 | BI110: -1.136868377e-13
B111: Equity Balance | I111: =I102 -> 66.66666667 | J111: =J102 -> 146.6666667 | K111: 240 | L111: 245.3333333 | M111: 250.6666667 | N111: 256 | O111: 261.3333333 | P111: 266.6666667 | Q111: 272 | R111: 277.3333333 | S111: 282.6666667 | T111: 288 | U111: 293.3333333 | V111: 298.6666667 | W111: 304 | X111: 309.3333333 | Y111: 314.6666667 | Z111: 320 | AA111: 325.3333333 | AB111: 330.6666667 | AC111: 336 | AD111: 341.3333333 | AE111: 346.6666667 | AF111: 312 | AG111: 277.3333333 | AH111: 242.6666667 | AI111: 208 | AJ111: 173.3333333 | AK111: 138.6666667 | AL111: 104 | AM111: 69.33333333 | AN111: 34.66666667 | AO111: -4.831690603e-13 | AP111: -4.831690603e-13 | AQ111: -4.831690603e-13 | AR111: -4.831690603e-13 | AS111: -4.831690603e-13 | AT111: -4.831690603e-13 | AU111: -4.831690603e-13 | AV111: -4.831690603e-13 | AW111: -4.831690603e-13 | AX111: -4.831690603e-13 | AY111: -4.831690603e-13 | AZ111: -4.831690603e-13 | BA111: -4.831690603e-13 | BB111: -4.831690603e-13 | BC111: -4.831690603e-13 | BD111: -4.831690603e-13 | BE111: -4.831690603e-13 | BF111: -4.831690603e-13 | BG111: -4.831690603e-13 | BH111: -4.831690603e-13 | BI111: -4.831690603e-13
C112: Total Capital | I112: =SUM(I110:I111) -> 333.3333333 | J112: =SUM(J110:J111) -> 680 | K112: 1040 | L112: 1005.333333 | M112: 970.6666667 | N112: 936 | O112: 901.3333333 | P112: 866.6666667 | Q112: 832 | R112: 797.3333333 | S112: 762.6666667 | T112: 728 | U112: 693.3333333 | V112: 658.6666667 | W112: 624 | X112: 589.3333333 | Y112: 554.6666667 | Z112: 520 | AA112: 485.3333333 | AB112: 450.6666667 | AC112: 416 | AD112: 381.3333333 | AE112: 346.6666667 | AF112: 312 | AG112: 277.3333333 | AH112: 242.6666667 | AI112: 208 | AJ112: 173.3333333 | AK112: 138.6666667 | AL112: 104 | AM112: 69.33333333 | AN112: 34.66666667 | AO112: -5.96855898e-13 | AP112: -5.96855898e-13 | AQ112: -5.96855898e-13 | AR112: -5.96855898e-13 | AS112: -5.96855898e-13 | AT112: -5.96855898e-13 | AU112: -5.96855898e-13 | AV112: -5.96855898e-13 | AW112: -5.96855898e-13 | AX112: -5.96855898e-13 | AY112: -5.96855898e-13 | AZ112: -5.96855898e-13 | BA112: -5.96855898e-13 | BB112: -5.96855898e-13 | BC112: -5.96855898e-13 | BD112: -5.96855898e-13 | BE112: -5.96855898e-13 | BF112: -5.96855898e-13 | BG112: -5.96855898e-13 | BH112: -5.96855898e-13 | BI112: -5.96855898e-13
C114: Difference | I114: =I108-I112 -> 0 | J114: =J108-J112 -> 0 | K114: 0 | L114: 0 | M114: 0 | N114: 0 | O114: 0 | P114: 0 | Q114: 0 | R114: 0 | S114: 0 | T114: 0 | U114: 0 | V114: 0 | W114: 0 | X114: 0 | Y114: 0 | Z114: 0 | AA114: 5.115907697e-13 | AB114: 4.547473509e-13 | AC114: 0 | AD114: 0 | AE114: 0 | AF114: 0 | AG114: 0 | AH114: 0 | AI114: 0 | AJ114: 0 | AK114: 0 | AL114: -1.278976924e-13 | AM114: -1.847411113e-13 | AN114: -2.415845302e-13 | AO114: 5.96855898e-13 | AP114: 5.96855898e-13 | AQ114: 5.96855898e-13 | AR114: 5.96855898e-13 | AS114: 5.96855898e-13 | AT114: 5.96855898e-13 | AU114: 5.96855898e-13 | AV114: 5.96855898e-13 | AW114: 5.96855898e-13 | AX114: 5.96855898e-13 | AY114: 5.96855898e-13 | AZ114: 5.96855898e-13 | BA114: 5.96855898e-13 | BB114: 5.96855898e-13 | BC114: 5.96855898e-13 | BD114: 5.96855898e-13 | BE114: 5.96855898e-13 | BF114: 5.96855898e-13 | BG114: 5.96855898e-13 | BH114: 5.96855898e-13 | BI114: 5.96855898e-13
C115: Test | G115: =AND(I115:BI115) -> TRUE | I115: =ROUND(I114,3)=0 -> TRUE | J115: =ROUND(J114,3)=0 -> TRUE | K115: TRUE | L115: TRUE | M115: TRUE | N115: TRUE | O115: TRUE | P115: TRUE | Q115: TRUE | R115: TRUE | S115: TRUE | T115: TRUE | U115: TRUE | V115: TRUE | W115: TRUE | X115: TRUE | Y115: TRUE | Z115: TRUE | AA115: TRUE | AB115: TRUE | AC115: TRUE | AD115: TRUE | AE115: TRUE | AF115: TRUE | AG115: TRUE | AH115: TRUE | AI115: TRUE | AJ115: TRUE | AK115: TRUE | AL115: TRUE | AM115: TRUE | AN115: TRUE | AO115: TRUE | AP115: TRUE | AQ115: TRUE | AR115: TRUE | AS115: TRUE | AT115: TRUE | AU115: TRUE | AV115: TRUE | AW115: TRUE | AX115: TRUE | AY115: TRUE | AZ115: TRUE | BA115: TRUE | BB115: TRUE | BC115: TRUE | BD115: TRUE | BE115: TRUE | BF115: TRUE | BG115: TRUE | BH115: TRUE | BI115: TRUE

Sheet Blank Exercise
D1: Period
D2: Construction Phase
D3: Operation Phase
D4: Debt Repayment Phase
A5: Assumptions
C6: Operating | J6: Project Pre Tax IRR
D7: Revenues | E7: 130 | J7: Project After Tax IRR
D8: Total Cost of Project | E8: 1000 | J8: Equity IRR
C10: Timing | J10: Min DSCR
D11: Construction Period | E11: 3
D12: Life | E12: 30
C14: Tax and Depreciation
D15: Depreciation Life | E15: 30
D16: Tax Rate | E16: 0.25
C18: Debt Financing
D19: Debt Commitment | E19: 800
D20: Debt Tenor | E20: 20
D21: Interest Rate | E21: 0.05
A23: Operations Analysis
C24: EBITDA
C25: Construction Expenditures
C26: Pre-tax Cash Flow
C27: Pre-tax IRR
A29: Depreciation
B30: Opening Balance
B31: Add: Construction
B32: Closing Balance
B33: Depreciation Expense
B35: EBIT
B36: EBIT x T
B38: After Tax Free Cash Flow
B39: Project IRR
A41: Sources and Uses
B42: Debt Financing Percent
B44: Uses of Funds
C45: Construction
C46: Interest During Construction
D47: Total
B49: Sources of Funds
C50: Debt Financing
C51: Equity Financing
D52: Total
A54: Debt Schedule
B55: Opening Balance
B56: Add: New Issues
B57: Less: Repayment
B58: Closing Balance
B60: Interest Cost
B61: Interest During Construction
B62: Interest Expense
B64: IDC
C65: Opening Balance
C66: Add: IDC
C67: Closing Balance
C68: Depreciaiton
B70: Accumulated Depreciation
A72: Profit and Loss
B73: EBITDA
B74: Less: Depreciation
C75: EBIT
B76: Less: Interest Expense
C77: EBT
B78: Less: Taxes
C79: Earnings
A81: Cash Flow Waterfall
B82: EBITDA
B83: Less: Taxes
C84: CFADS
B85: Less: Interest Expense
B86: Less: Debt Repayments
C87: Dividends
A89: Debt Service Coverage
B90: CFADS
B91: Debt Service
C92: DSCR
C94: Equity Cash Flow
C95: Equity IRR
A97: Equity Balance
B98: Opening Balance
B99: Add: Contributions
B100: Add: Net Income
B101: Less: Dividends
B102: Closing Balance
A104: Balance Sheet
B105: Gross Plant
B106: IDC Balance
B107: Accumulated Depreciation
C108: Total Assets
B110: Debt Balance
B111: Equity Balance
C112: Total Capital
C114: Difference
C115: Test

Sheet Model Inputs
A1: Assumptions
C2: Operating | H2: Project Pre Tax IRR
D3: Revenues | E3: 130 | H3: Project After Tax IRR
D4: Capital Expendture | E4: 1000 | H4: Equity IRR
C6: Timing | H6: Min DSCR
D7: Construction Period | E7: 3
D8: Life | E8: 30
C10: Tax and Depreciation
D11: Depreciation Life | E11: 30
D12: Tax Rate | E12: 0.25
C14: Debt Financing
D15: Debt Commitment | E15: 800
D16: Debt Tenor | E16: 25
D17: Interest Rate | E17: 0.05

Sheet Advertising
C2: High Quality Modelling, Finance and Energy Courses
C4: This page is my advertising and publicity - You can of course delete the page without affecting the model
C6: I have taught classes for many years and I believe I have learned from my mistakes and can offer high quality courses
C8: Here is my simple concept
D9: 1. Deliver the courses at a reasonable price -- I will do quite well if a lot of people attend and I will survive if course numbers are low
E10: USD 1,000 -2,000 for courses in Europe
E11: USD 750 - 1,500 for courses in Africa and Latin America
D12: 2. Do not cancel the classes as long as one student has signed up (I take the risk of low numbers and not you)
D13: 3. Limit the size of the classes to 25 participants
D14: 4. Lunches are offered by not with a four course elaborate menu -- we assume that you are attending the course to learn and not to have a fancy lunch
C16: Download Outlines at | I16: www.FinanceEnergyInstitute.com
C17: Check for upcomming dates | I17: www.FinanceEnergyInstitute.com
C19: Customised In-Company Courses
C21: I also offer courses tailored for single institutions (or combinations of institutions)
C22: Depending on various considerations my rate is USD 1,500 to USD 2,000 per day plus expenses
C24: Contact Details
D25: E-mail | I25: edwardbodmer@gmail.com
D26: Phone | I26: 001-630-886-2754
D28: Skype | I28: edward.bodmer
D29: Link to Book
